[Event "Live Chess"]
[Site "Chess.com"]
[Date "2024.06.02"]
[Round "-"]
[White "GoldsmanB"]
[Black "DJ_Lambton"]
[Result "0-1"]
[WhiteElo "1102"]
[BlackElo "1782"]
[TimeControl "300"]
[EndTime "2:58:02 PDT"]
[Termination "DJ_Lambton won by resignation"]

1. d3 {[%clk 0:04:58.2]} 1... c6 {[%clk 0:04:59.9]} 2. e4 {[%clk 0:04:56.4]}
2... d5 {[%clk 0:04:59.8]} 3. exd5 {[%clk 0:04:55.1]} 3... cxd5 {[%clk
0:04:59.7]} 4. d4 {[%clk 0:04:54]} 4... Nf6 {[%clk 0:04:58.8]} 5. Nc3 {[%clk
0:04:52.7]} 5... Bf5 {[%clk 0:04:57.9]} 6. Bf4 {[%clk 0:04:51.2]} 6... e6 {[%clk
0:04:56.7]} 7. Nf3 {[%clk 0:04:49.2]} 7... a6 {[%clk 0:04:55.2]} 8. Bd3 {[%clk
0:04:48.6]} 8... Bxd3 {[%clk 0:04:53.7]} 9. Qxd3 {[%clk 0:04:48.5]} 9... Nc6
{[%clk 0:04:53.1]} 10. O-O {[%clk 0:04:47]} 10... Be7 {[%clk 0:04:52]} 11. Rfe1
{[%clk 0:04:40.6]} 11... O-O {[%clk 0:04:51]} 12. Ne5 {[%clk 0:04:39.1]} 12...
Rc8 {[%clk 0:04:49.7]} 13. Nxc6 {[%clk 0:04:37]} 13... Rxc6 {[%clk 0:04:47.6]}
14. Ne2 {[%clk 0:04:32.4]} 14... Qd7 {[%clk 0:04:46.1]} 15. c3 {[%clk
0:04:30.7]} 15... Rfc8 {[%clk 0:04:44.3]} 16. Bd2 {[%clk 0:04:27.4]} 16... Bd6
{[%clk 0:04:41.7]} 17. Nf4 {[%clk 0:04:24.1]} 17... Bc7 {[%clk 0:04:38.3]} 18.
Qc2 {[%clk 0:04:10.8]} 18... Bd6 {[%clk 0:04:36.6]} 19. Nd3 {[%clk 0:04:09.5]}
19... Qe7 {[%clk 0:04:34.3]} 20. Bf4 {[%clk 0:04:06.4]} 20... Ne4 {[%clk
0:04:29.1]} 21. Bxd6 {[%clk 0:04:04.1]} 21... Nxd6 {[%clk 0:04:27]} 22. Ne5
{[%clk 0:04:01.7]} 22... R6c7 {[%clk 0:04:25.9]} 23. Re3 {[%clk 0:03:54]} 23...
Qg5 {[%clk 0:04:23.7]} 24. Nf3 {[%clk 0:03:50.6]} 24... Qf6 {[%clk 0:04:20.5]}
25. Re5 {[%clk 0:03:47.2]} 25... Ne4 {[%clk 0:04:17.9]} 26. Kf1 {[%clk
0:03:37.2]} 26... b5 {[%clk 0:04:06.2]} 27. b3 {[%clk 0:03:30.2]} 27... Rxc3
{[%clk 0:04:04.8]} 28. Qb2 {[%clk 0:03:25]} 28... Rc2 {[%clk 0:04:02]} 29. Qb1
{[%clk 0:03:19.5]} 29... Rxf2+ {[%clk 0:04:00.2]} 30. Kg1 {[%clk 0:03:16.6]}
30... Rcc2 {[%clk 0:03:57.8]} 0-1

[Event "Live Chess"]
[Site "Chess.com"]
[Date "2024.06.02"]
[Round "-"]
[White "WeakOldFinished"]
[Black "JohanKjeldahl"]
[Result "1-0"]
[WhiteElo "2099"]
[BlackElo "1805"]
[TimeControl "300"]
[EndTime "2:58:06 PDT"]
[Termination "WeakOldFinished won by resignation"]

1. e4 {[%clk 0:04:55.6]} 1... c5 {[%clk 0:04:58.2]} 2. Nf3 {[%clk 0:04:54.1]}
2... e6 {[%clk 0:04:56.4]} 3. d4 {[%clk 0:04:52.2]} 3... cxd4 {[%clk 0:04:55.3]}
4. Nxd4 {[%clk 0:04:51.2]} 4... Nc6 {[%clk 0:04:54.9]} 5. Nb5 {[%clk 0:04:50]}
5... Bc5 {[%clk 0:04:50.4]} 6. Be3 {[%clk 0:04:44.7]} 6... Bxe3 {[%clk 0:04:47]}
7. fxe3 {[%clk 0:04:43.8]} 7... a6 {[%clk 0:04:36.5]} 8. Nd6+ {[%clk 0:04:38.7]}
8... Ke7 {[%clk 0:04:35.4]} 9. Nc3 {[%clk 0:04:37.3]} 9... Qc7 {[%clk
0:04:32.2]} 10. Nxc8+ {[%clk 0:04:24.9]} 10... Rxc8 {[%clk 0:04:30]} 11. Bd3
{[%clk 0:04:24.1]} 11... Nf6 {[%clk 0:04:27.8]} 12. O-O {[%clk 0:04:23.2]} 12...
Ne5 {[%clk 0:04:22.4]} 13. Qe2 {[%clk 0:04:20.1]} 13... b5 {[%clk 0:04:21.1]}
14. Rad1 {[%clk 0:04:14.2]} 14... Rhd8 {[%clk 0:04:18.2]} 15. h3 {[%clk
0:04:08.6]} 15... Nxd3 {[%clk 0:04:11]} 16. cxd3 {[%clk 0:04:05.1]} 16... Qc5
{[%clk 0:04:05.1]} 17. Rc1 {[%clk 0:04:01.4]} 17... Qb6 {[%clk 0:03:59.3]} 18.
e5 {[%clk 0:04:00.2]} 18... Ng8 {[%clk 0:03:46.4]} 19. d4 {[%clk 0:03:57.8]}
19... f5 {[%clk 0:03:37.9]} 20. Qh5 {[%clk 0:03:39.4]} 20... Nh6 {[%clk
0:03:32.9]} 21. Qg5+ {[%clk 0:03:35.3]} 21... Kf7 {[%clk 0:03:30.3]} 22. Ne4
{[%clk 0:03:23]} 22... Rg8 {[%clk 0:03:22.7]} 23. Nd6+ {[%clk 0:03:21.5]} 1-0

[Event "Live Chess"]
[Site "Chess.com"]
[Date "2024.06.02"]
[Round "-"]
[White "Mikhail_Golubev"]
[Black "oscalik"]
[Result "1-0"]
[WhiteElo "2515"]
[BlackElo "2244"]
[TimeControl "300"]
[EndTime "2:58:12 PDT"]
[Termination "Mikhail_Golubev won by resignation"]

1. e4 {[%clk 0:04:58.1]} 1... e5 {[%clk 0:04:57.4]} 2. Nf3 {[%clk 0:04:57]} 2...
Nc6 {[%clk 0:04:56.6]} 3. Bc4 {[%clk 0:04:55.9]} 3... d6 {[%clk 0:04:54.8]} 4.
Nc3 {[%clk 0:04:42.5]} 4... Bg4 {[%clk 0:04:48.2]} 5. h3 {[%clk 0:04:41.2]} 5...
Bh5 {[%clk 0:04:46.5]} 6. Nxe5 {[%clk 0:04:33.6]} 6... Nxe5 {[%clk 0:04:33.2]}
7. Qxh5 {[%clk 0:04:31.4]} 7... Nxc4 {[%clk 0:04:24.9]} 8. Qb5+ {[%clk
0:04:27.2]} 8... c6 {[%clk 0:04:15.7]} 9. Qxc4 {[%clk 0:04:27.1]} 9... Nf6
{[%clk 0:04:14.1]} 10. d4 {[%clk 0:04:13.1]} 10... Be7 {[%clk 0:04:10.5]} 11.
O-O {[%clk 0:04:08.7]} 11... O-O {[%clk 0:04:09.6]} 12. d5 {[%clk 0:04:01.1]}
12... Rc8 {[%clk 0:04:04.9]} 13. dxc6 {[%clk 0:03:56.9]} 13... bxc6 {[%clk
0:04:04.8]} 14. Be3 {[%clk 0:03:50.3]} 14... Qa5 {[%clk 0:03:54.9]} 15. Rad1
{[%clk 0:03:36.8]} 15... Rfd8 {[%clk 0:03:40.9]} 16. Qe2 {[%clk 0:03:00.4]}
16... Qb4 {[%clk 0:03:35.8]} 17. Bc1 {[%clk 0:02:54.6]} 17... Nd7 {[%clk
0:03:16.6]} 18. a3 {[%clk 0:02:48.6]} 18... Qb6 {[%clk 0:03:05.6]} 19. Na4
{[%clk 0:02:37.4]} 19... Qa5 {[%clk 0:03:01.1]} 20. b3 {[%clk 0:02:36.3]} 20...
Ne5 {[%clk 0:02:36.2]} 21. Bb2 {[%clk 0:02:31.2]} 21... Ng6 {[%clk 0:02:24.8]}
22. f4 {[%clk 0:02:17.2]} 22... Re8 {[%clk 0:02:05]} 23. Qg4 {[%clk 0:01:51.1]}
23... d5 {[%clk 0:01:48.7]} 24. f5 {[%clk 0:01:42.2]} 24... Bc5+ {[%clk
0:01:44.2]} 25. Nxc5 {[%clk 0:01:40.4]} 25... Qxc5+ {[%clk 0:01:40.6]} 26. Bd4
{[%clk 0:01:33.7]} 26... Qxc2 {[%clk 0:01:30.3]} 27. fxg6 {[%clk 0:01:32.2]}
27... hxg6 {[%clk 0:01:29.4]} 28. Rxf7 {[%clk 0:01:19.6]} 28... Kxf7 {[%clk
0:01:23]} 29. Qd7+ {[%clk 0:01:16.8]} 29... Re7 {[%clk 0:01:19.6]} 30. Rf1+
{[%clk 0:01:14]} 30... Kg8 {[%clk 0:01:14.5]} 31. Qxe7 {[%clk 0:01:12.6]} 1-0

[Event "Live Chess"]
[Site "Chess.com"]
[Date "2024.06.02"]
[Round "-"]
[White "JanMur7"]
[Black "CarmelJane"]
[Result "1-0"]
[WhiteElo "2268"]
[BlackElo "2052"]
[TimeControl "300"]
[EndTime "2:58:21 PDT"]
[Termination "JanMur7 won by resignation"]

1. c4 {[%clk 0:04:59.1]} 1... e5 {[%clk 0:04:58.2]} 2. Nc3 {[%clk 0:04:58.4]}
2... Nf6 {[%clk 0:04:56.7]} 3. Nf3 {[%clk 0:04:57.9]} 3... Nc6 {[%clk
0:04:53.7]} 4. e4 {[%clk 0:04:56.5]} 4... Bb4 {[%clk 0:04:52.7]} 5. d3 {[%clk
0:04:55.7]} 5... Bxc3+ {[%clk 0:04:51.5]} 6. bxc3 {[%clk 0:04:55.6]} 6... O-O
{[%clk 0:04:50.5]} 7. Be2 {[%clk 0:04:54.7]} 7... h6 {[%clk 0:04:50.1]} 8. O-O
{[%clk 0:04:53.5]} 8... d6 {[%clk 0:04:49.8]} 9. h3 {[%clk 0:04:46.3]} 9... Be6
{[%clk 0:04:46.6]} 10. Be3 {[%clk 0:04:44.6]} 10... Nh7 {[%clk 0:04:41]} 11. d4
{[%clk 0:04:37.5]} 11... Bd7 {[%clk 0:04:29.7]} 12. d5 {[%clk 0:04:33.6]} 12...
Ne7 {[%clk 0:04:28.7]} 13. c5 {[%clk 0:04:26.3]} 13... f5 {[%clk 0:04:25.5]} 14.
exf5 {[%clk 0:04:25.2]} 14... Nxf5 {[%clk 0:04:10.8]} 15. cxd6 {[%clk
0:04:22.9]} 15... cxd6 {[%clk 0:04:06.8]} 16. Rb1 {[%clk 0:04:20.3]} 16... b6
{[%clk 0:04:05.3]} 17. Qb3 {[%clk 0:04:15.8]} 17... Nxe3 {[%clk 0:03:29.9]} 18.
fxe3 {[%clk 0:04:15.7]} 18... Ng5 {[%clk 0:03:28.1]} 19. Qb4 {[%clk 0:04:09]}
19... Qc8 {[%clk 0:03:07.6]} 20. Nxg5 {[%clk 0:04:01.1]} 20... hxg5 {[%clk
0:03:07.5]} 21. Qxd6 {[%clk 0:03:58]} 21... Rxf1+ {[%clk 0:03:02.3]} 22. Rxf1
{[%clk 0:03:55.1]} 22... g4 {[%clk 0:02:53.5]} 23. Bxg4 {[%clk 0:03:36.1]} 23...
Bxg4 {[%clk 0:02:49.3]} 24. hxg4 {[%clk 0:03:36]} 24... Qxg4 {[%clk 0:02:47.3]}
25. Qxe5 {[%clk 0:03:34.8]} 25... Qh4 {[%clk 0:02:03.5]} 26. Qe6+ {[%clk
0:03:24.7]} 26... Kh7 {[%clk 0:02:00.9]} 27. Rf3 {[%clk 0:03:23.8]} 1-0

[Event "Live Chess"]
[Site "Chess.com"]
[Date "2024.06.02"]
[Round "-"]
[White "vincents82"]
[Black "WorcesterYork"]
[Result "0-1"]
[WhiteElo "2002"]
[BlackElo "2477"]
[TimeControl "300"]
[EndTime "2:58:42 PDT"]
[Termination "WorcesterYork won by resignation"]

1. e4 {[%clk 0:04:53.3]} 1... c5 {[%clk 0:04:58.8]} 2. Nf3 {[%clk 0:04:52.2]}
2... Nc6 {[%clk 0:04:58.4]} 3. d4 {[%clk 0:04:51.6]} 3... cxd4 {[%clk
0:04:57.8]} 4. Nxd4 {[%clk 0:04:51.1]} 4... e5 {[%clk 0:04:57.4]} 5. Nb5 {[%clk
0:04:49.6]} 5... a6 {[%clk 0:04:56.6]} 6. Nd6+ {[%clk 0:04:48.6]} 6... Bxd6
{[%clk 0:04:56.2]} 7. Qxd6 {[%clk 0:04:48]} 7... Qf6 {[%clk 0:04:56.1]} 8. Qxf6
{[%clk 0:04:47.3]} 8... Nxf6 {[%clk 0:04:56]} 9. Bd3 {[%clk 0:04:45.5]} 9... d5
{[%clk 0:04:52.6]} 10. exd5 {[%clk 0:04:44.2]} 10... Nxd5 {[%clk 0:04:52.5]} 11.
Nc3 {[%clk 0:04:43.5]} 11... Nxc3 {[%clk 0:04:50.3]} 12. bxc3 {[%clk 0:04:42.3]}
12... Be6 {[%clk 0:04:49.5]} 13. O-O {[%clk 0:04:37.8]} 13... Rc8 {[%clk
0:04:43.9]} 14. Be4 {[%clk 0:04:36]} 14... f5 {[%clk 0:04:37.8]} 15. Bxc6+
{[%clk 0:04:34.6]} 15... Rxc6 {[%clk 0:04:37.1]} 16. Rb1 {[%clk 0:04:28.6]}
16... b5 {[%clk 0:04:35.8]} 17. Rb2 {[%clk 0:04:15.8]} 17... Kf7 {[%clk
0:04:32.7]} 18. Bd2 {[%clk 0:04:10.9]} 18... Rd8 {[%clk 0:04:31.2]} 19. Bg5
{[%clk 0:04:08.9]} 19... Rd5 {[%clk 0:04:25.6]} 20. Re1 {[%clk 0:04:07]} 20...
Rxc3 {[%clk 0:04:23.9]} 21. h4 {[%clk 0:03:56.9]} 21... f4 {[%clk 0:04:21.6]}
22. h5 {[%clk 0:03:50.3]} 22... Rdc5 {[%clk 0:04:10.4]} 23. Re2 {[%clk
0:03:47.5]} 23... Bg4 {[%clk 0:04:08.4]} 24. Rd2 {[%clk 0:03:46]} 24... Bxh5
{[%clk 0:04:07.7]} 25. Rd7+ {[%clk 0:03:44.8]} 25... Kg6 {[%clk 0:04:06.5]} 26.
Be7 {[%clk 0:03:43.3]} 26... Rxc2 {[%clk 0:04:04.2]} 27. Bxc5 {[%clk 0:03:35.3]}
27... Rxb2 {[%clk 0:04:02.4]} 28. Bd6 {[%clk 0:03:32.6]} 28... Kf5 {[%clk
0:03:58.6]} 29. Rxg7 {[%clk 0:03:27.1]} 29... Bg6 {[%clk 0:03:55.4]} 30. Re7
{[%clk 0:03:25.8]} 30... e4 {[%clk 0:03:54.4]} 31. a3 {[%clk 0:03:13.3]} 31...
Rd2 {[%clk 0:03:48.7]} 32. Bb4 {[%clk 0:03:08.1]} 32... Rd1+ {[%clk 0:03:47.1]}
33. Kh2 {[%clk 0:03:05.9]} 33... Rf1 {[%clk 0:03:36.8]} 34. Bc5 {[%clk
0:03:02.9]} 34... Rc1 {[%clk 0:03:34.3]} 35. Bb4 {[%clk 0:03:00.9]} 35... Rc2
{[%clk 0:03:33.5]} 36. Kg1 {[%clk 0:02:53.2]} 36... Rc6 {[%clk 0:03:32]} 37. Rd7
{[%clk 0:02:39.1]} 37... e3 {[%clk 0:03:19.4]} 38. fxe3 {[%clk 0:02:36.9]} 38...
fxe3 {[%clk 0:03:19.3]} 39. Re7 {[%clk 0:02:35.8]} 39... Kf4 {[%clk 0:03:18.7]}
40. g3+ {[%clk 0:02:34.7]} 40... Kf3 {[%clk 0:03:16.9]} 41. Kh2 {[%clk
0:02:21.3]} 41... Rc2+ {[%clk 0:03:13.9]} 42. Kh3 {[%clk 0:02:18.7]} 42... Bf5+
{[%clk 0:03:09.5]} 43. Kh4 {[%clk 0:02:17.9]} 43... h6 {[%clk 0:03:09]} 0-1

[Event "Live Chess"]
[Site "Chess.com"]
[Date "2024.06.02"]
[Round "-"]
[White "TigerTank70"]
[Black "raimundklein"]
[Result "1-0"]
[WhiteElo "2235"]
[BlackElo "1558"]
[TimeControl "300"]
[EndTime "2:59:02 PDT"]
[Termination "TigerTank70 won by resignation"]

1. e4 {[%clk 0:04:57.8]} 1... c6 {[%clk 0:04:58.7]} 2. d4 {[%clk 0:04:56.9]}
2... d5 {[%clk 0:04:58]} 3. e5 {[%clk 0:04:56.5]} 3... Bf5 {[%clk 0:04:56.2]} 4.
Nc3 {[%clk 0:04:53.3]} 4... e6 {[%clk 0:04:46]} 5. g4 {[%clk 0:04:50.8]} 5...
Bg6 {[%clk 0:04:43]} 6. Nge2 {[%clk 0:04:49.9]} 6... Qh4 {[%clk 0:04:38.3]} 7.
Nf4 {[%clk 0:04:43.9]} 7... Bb4 {[%clk 0:04:31.8]} 8. Bd2 {[%clk 0:04:32.3]}
8... Ne7 {[%clk 0:04:29.2]} 9. a3 {[%clk 0:04:24.2]} 9... Ba5 {[%clk 0:04:27.1]}
10. Bg2 {[%clk 0:04:15.4]} 10... Nd7 {[%clk 0:04:14.3]} 11. Qe2 {[%clk
0:04:08.9]} 11... h5 {[%clk 0:04:11.8]} 12. gxh5 {[%clk 0:03:51]} 12... Bxh5
{[%clk 0:04:06.9]} 13. Nxh5 {[%clk 0:03:49.2]} 13... Rxh5 {[%clk 0:04:05.1]} 14.
O-O-O {[%clk 0:03:45.8]} 14... Nf5 {[%clk 0:03:52.4]} 15. Be3 {[%clk 0:03:30.6]}
15... O-O-O {[%clk 0:03:33.3]} 16. b4 {[%clk 0:03:21.2]} 16... Bc7 {[%clk
0:03:27.4]} 17. Na4 {[%clk 0:03:17.9]} 17... Kb8 {[%clk 0:03:20.5]} 18. Qd2
{[%clk 0:03:06.2]} 18... Qg4 {[%clk 0:02:57.3]} 19. Rdg1 {[%clk 0:02:58.3]}
19... Rhh8 {[%clk 0:02:54.6]} 20. Bf1 {[%clk 0:02:54.5]} 20... Qh5 {[%clk
0:02:47.1]} 21. Be2 {[%clk 0:02:46.5]} 21... Qh7 {[%clk 0:02:38.7]} 22. Bd3
{[%clk 0:02:44.8]} 22... f6 {[%clk 0:02:32.6]} 23. exf6 {[%clk 0:02:19.6]} 23...
gxf6 {[%clk 0:02:32.5]} 24. h4 {[%clk 0:02:15.8]} 24... Qe7 {[%clk 0:02:10.9]}
25. Bxf5 {[%clk 0:02:12]} 25... exf5 {[%clk 0:02:10.8]} 26. Bf4 {[%clk
0:02:06.9]} 26... Qe4 {[%clk 0:02:02.8]} 27. Bxc7+ {[%clk 0:02:03]} 27... Kxc7
{[%clk 0:02:01.3]} 28. h5 {[%clk 0:02:01.9]} 28... f4 {[%clk 0:01:51.4]} 29. Re1
{[%clk 0:01:59.8]} 29... Qf5 {[%clk 0:01:47.5]} 30. Re7 {[%clk 0:01:52.7]} 30...
Rh6 {[%clk 0:01:33.4]} 31. Nc5 {[%clk 0:01:48.4]} 31... b6 {[%clk 0:01:28.7]}
32. Ne6+ {[%clk 0:01:29.4]} 32... Kd6 {[%clk 0:01:26.3]} 33. Ng7 {[%clk
0:01:26.4]} 33... Qg4 {[%clk 0:01:16.5]} 34. Rhe1 {[%clk 0:01:12.2]} 34... Rg8
{[%clk 0:01:09.3]} 35. f3 {[%clk 0:01:05]} 35... Qg3 {[%clk 0:01:05.8]} 36. Nf5+
{[%clk 0:01:03.1]} 1-0

[Event "Live Chess"]
[Site "Chess.com"]
[Date "2024.06.02"]
[Round "-"]
[White "Zhevzh1k7"]
[Black "NottheBishopSacrifice"]
[Result "0-1"]
[WhiteElo "1107"]
[BlackElo "2312"]
[TimeControl "300"]
[EndTime "2:59:37 PDT"]
[Termination "NottheBishopSacrifice won by resignation"]

1. e4 {[%clk 0:04:56.8]} 1... c6 {[%clk 0:04:59.9]} 2. d4 {[%clk 0:04:54.9]}
2... d5 {[%clk 0:04:59.8]} 3. f3 {[%clk 0:04:52.7]} 3... Qb6 {[%clk 0:04:54.9]}
4. Nc3 {[%clk 0:04:47.3]} 4... dxe4 {[%clk 0:04:51.5]} 5. fxe4 {[%clk
0:04:44.3]} 5... e5 {[%clk 0:04:50.6]} 6. Nf3 {[%clk 0:04:38.1]} 6... exd4
{[%clk 0:04:46.9]} 7. Nxd4 {[%clk 0:04:35.5]} 7... Be7 {[%clk 0:04:46.4]} 8. Bd3
{[%clk 0:04:29.4]} 8... Qxd4 {[%clk 0:04:39.2]} 9. Bf4 {[%clk 0:04:22.6]} 9...
Nf6 {[%clk 0:04:34.8]} 10. Qd2 {[%clk 0:04:10.8]} 10... Nbd7 {[%clk 0:04:29.3]}
11. O-O-O {[%clk 0:03:33.6]} 11... Ne5 {[%clk 0:04:24]} 12. Bxe5 {[%clk
0:03:32]} 12... Qxe5 {[%clk 0:04:21.1]} 13. Be2 {[%clk 0:03:21.7]} 13... Be6
{[%clk 0:04:15.5]} 14. Bf3 {[%clk 0:03:15.7]} 14... O-O {[%clk 0:04:10.8]} 15.
h4 {[%clk 0:03:08.8]} 15... Bb4 {[%clk 0:04:05.9]} 16. a3 {[%clk 0:03:05.4]}
16... Bxc3 {[%clk 0:04:02.4]} 17. bxc3 {[%clk 0:03:05.3]} 17... Qc5 {[%clk
0:03:58.9]} 18. Kb2 {[%clk 0:02:55.4]} 18... Qc4 {[%clk 0:03:56.3]} 19. Ra1
{[%clk 0:02:52]} 19... Nd7 {[%clk 0:03:51.6]} 20. h5 {[%clk 0:02:41]} 20... h6
{[%clk 0:03:49.3]} 21. g4 {[%clk 0:02:26.9]} 21... Nc5 {[%clk 0:03:45.8]} 22. g5
{[%clk 0:02:21.6]} 22... Na4+ {[%clk 0:03:44.4]} 23. Kc1 {[%clk 0:02:16.9]}
23... Qxc3 {[%clk 0:03:44]} 24. Qxc3 {[%clk 0:02:09.4]} 24... Nxc3 {[%clk
0:03:43.9]} 25. gxh6 {[%clk 0:02:08.3]} 25... gxh6 {[%clk 0:03:41]} 26. Rg1+
{[%clk 0:02:06]} 26... Kh8 {[%clk 0:03:38]} 27. e5 {[%clk 0:02:01]} 27... Rad8
{[%clk 0:03:35.1]} 28. Be2 {[%clk 0:01:58.2]} 28... Nxe2+ {[%clk 0:03:32.9]} 0-1

[Event "Live Chess"]
[Site "Chess.com"]
[Date "2024.06.02"]
[Round "-"]
[White "GwaryTek"]
[Black "juniortay"]
[Result "0-1"]
[WhiteElo "1872"]
[BlackElo "2379"]
[TimeControl "300"]
[EndTime "2:59:37 PDT"]
[Termination "juniortay won by resignation"]

1. d4 {[%clk 0:04:56.6]} 1... d5 {[%clk 0:04:58.1]} 2. c4 {[%clk 0:04:55.2]}
2... e6 {[%clk 0:04:56.9]} 3. cxd5 {[%clk 0:04:54.1]} 3... exd5 {[%clk 0:04:56]}
4. Nc3 {[%clk 0:04:54]} 4... c5 {[%clk 0:04:55.2]} 5. Nf3 {[%clk 0:04:53.9]}
5... Nc6 {[%clk 0:04:52]} 6. g3 {[%clk 0:04:53.8]} 6... Nf6 {[%clk 0:04:50.9]}
7. Bg2 {[%clk 0:04:53.7]} 7... cxd4 {[%clk 0:04:49.9]} 8. O-O {[%clk 0:04:53.6]}
8... dxc3 {[%clk 0:04:48.6]} 9. Nd4 {[%clk 0:04:53.5]} 9... Nxd4 {[%clk
0:04:46.3]} 10. Qa4+ {[%clk 0:03:45.8]} 10... Nc6 {[%clk 0:04:44]} 11. Qxc6+
{[%clk 0:03:41.8]} 11... bxc6 {[%clk 0:04:42.8]} 0-1

[Event "Live Chess"]
[Site "Chess.com"]
[Date "2024.06.02"]
[Round "-"]
[White "blunderabit"]
[Black "MagnersCarlsberg2870"]
[Result "1-0"]
[WhiteElo "1757"]
[BlackElo "1791"]
[TimeControl "300"]
[EndTime "2:59:46 PDT"]
[Termination "blunderabit won by resignation"]

1. e4 {[%clk 0:04:54.9]} 1... d6 {[%clk 0:04:57.3]} 2. d4 {[%clk 0:04:50.3]}
2... Nf6 {[%clk 0:04:55.8]} 3. Nc3 {[%clk 0:04:49.1]} 3... Nbd7 {[%clk
0:04:54.4]} 4. g3 {[%clk 0:04:46.4]} 4... e5 {[%clk 0:04:53.2]} 5. Nge2 {[%clk
0:04:43]} 5... c6 {[%clk 0:04:48.7]} 6. Bg2 {[%clk 0:04:41.2]} 6... Be7 {[%clk
0:04:46.3]} 7. a4 {[%clk 0:04:36.3]} 7... Qc7 {[%clk 0:04:42.8]} 8. O-O {[%clk
0:04:33.5]} 8... h5 {[%clk 0:04:41.5]} 9. h3 {[%clk 0:04:32.7]} 9... Nf8 {[%clk
0:04:30.5]} 10. a5 {[%clk 0:04:29.5]} 10... a6 {[%clk 0:04:29.1]} 11. Be3 {[%clk
0:04:24.8]} 11... Ng6 {[%clk 0:04:26.2]} 12. Qd2 {[%clk 0:04:23.2]} 12... h4
{[%clk 0:04:24.8]} 13. g4 {[%clk 0:04:15.3]} 13... Bxg4 {[%clk 0:04:12.8]} 14.
hxg4 {[%clk 0:04:12.9]} 14... Nxg4 {[%clk 0:04:11.7]} 15. Bh3 {[%clk 0:04:09.9]}
15... Nxe3 {[%clk 0:04:01.8]} 16. Qxe3 {[%clk 0:04:07.4]} 16... Nf4 {[%clk
0:03:57.5]} 17. Nxf4 {[%clk 0:04:01]} 17... exf4 {[%clk 0:03:56.1]} 18. Qxf4
{[%clk 0:03:58.7]} 18... g5 {[%clk 0:03:55.2]} 19. Qg4 {[%clk 0:03:53]} 19...
Bf6 {[%clk 0:03:47.8]} 1-0

[Event "Live Chess"]
[Site "Chess.com"]
[Date "2024.06.02"]
[Round "-"]
[White "AlanBstard10"]
[Black "AlexanderMatlak"]
[Result "0-1"]
[WhiteElo "1223"]
[BlackElo "2390"]
[TimeControl "300"]
[EndTime "2:59:59 PDT"]
[Termination "AlexanderMatlak won by resignation"]

1. b4 {[%clk 0:04:57.4]} 1... c6 {[%clk 0:04:58.8]} 2. Bb2 {[%clk 0:04:56.9]}
2... a5 {[%clk 0:04:57.9]} 3. a3 {[%clk 0:04:55.4]} 3... axb4 {[%clk 0:04:57]}
4. axb4 {[%clk 0:04:55.1]} 4... Rxa1 {[%clk 0:04:56.6]} 5. Bxa1 {[%clk
0:04:54.8]} 5... Qb6 {[%clk 0:04:56.1]} 6. c3 {[%clk 0:04:53.1]} 6... Nf6 {[%clk
0:04:54.1]} 7. Nf3 {[%clk 0:04:52.2]} 7... d5 {[%clk 0:04:50.7]} 8. e3 {[%clk
0:04:51.4]} 8... Bg4 {[%clk 0:04:48.4]} 9. Be2 {[%clk 0:04:49.6]} 9... Nbd7
{[%clk 0:04:47.6]} 10. Nd4 {[%clk 0:04:47.6]} 10... Bxe2 {[%clk 0:04:44.5]} 11.
Qxe2 {[%clk 0:04:47.3]} 11... e5 {[%clk 0:04:43.5]} 12. Nf5 {[%clk 0:04:43]}
12... g6 {[%clk 0:04:41.7]} 13. Ng3 {[%clk 0:04:41.9]} 13... Bg7 {[%clk
0:04:40.8]} 14. Bb2 {[%clk 0:04:40.1]} 14... h5 {[%clk 0:04:30]} 15. d4 {[%clk
0:04:39.5]} 15... h4 {[%clk 0:04:28.2]} 16. Nf1 {[%clk 0:04:38.3]} 16... h3
{[%clk 0:04:24.5]} 17. g3 {[%clk 0:04:36.1]} 17... O-O {[%clk 0:04:16.2]} 18.
Nbd2 {[%clk 0:04:34.7]} 18... Ra8 {[%clk 0:04:12.3]} 19. f4 {[%clk 0:04:30.9]}
19... exf4 {[%clk 0:04:08.1]} 20. exf4 {[%clk 0:04:28.3]} 20... Re8 {[%clk
0:03:59.6]} 21. Ne3 {[%clk 0:04:25.9]} 21... Qa7 {[%clk 0:03:48.7]} 22. Kf2
{[%clk 0:04:24.3]} 22... Qa2 {[%clk 0:03:43.7]} 23. Rb1 {[%clk 0:04:19.1]} 23...
Ne4+ {[%clk 0:03:36.7]} 24. Nxe4 {[%clk 0:04:16.7]} 24... Qxb1 {[%clk
0:03:35.8]} 25. Nd6 {[%clk 0:04:10.7]} 25... Re6 {[%clk 0:03:34.1]} 26. Nxb7
{[%clk 0:04:05.1]} 26... Qh1 {[%clk 0:03:33.1]} 27. Ng4 {[%clk 0:03:49.3]} 27...
Rxe2+ {[%clk 0:03:30.9]} 28. Kxe2 {[%clk 0:03:48.7]} 28... Qg2+ {[%clk
0:03:26.6]} 29. Kd3 {[%clk 0:03:47.7]} 0-1